[Event "Titled Tuesday Blitz March 22 Early 2022"]
[White "Svidler, Peter"]
[Black "Kozak, Antoni"]
[WhiteFideId "4102142"]
[BlackFideId "21832030"]
[WhiteElo "2725"]
[BlackElo "2236"]
[Result "1-0"]
[Round "04"]
[TimeControl "180+1"]
[Date "2022.03.22"]
[WhiteClock "0:00:38"]
[BlackClock "0:00:07"]

1. e4 {[%clk 0:03:00]}  c6 {[%clk 0:02:54]} 2. d4 {[%clk 0:02:56]}  d5 {[%clk 0:02:51]} 3. f3 {[%clk 0:02:54]}  Qb6 {[%clk 0:02:46]} 4. a4 {[%clk 0:02:51]}  a5 {[%clk 0:02:41]} 5. Nc3 {[%clk 0:02:20]}  dxe4 {[%clk 0:02:38]} 6. fxe4 {[%clk 0:02:16]}  e5 {[%clk 0:02:38]} 7. dxe5 {[%clk 0:01:56]}  Bc5 {[%clk 0:02:28]} 8. Qf3 {[%clk 0:01:55]}  Bxg1 {[%clk 0:02:18]} 9. Bc4 {[%clk 0:01:55]}  Be6 {[%clk 0:02:03]} 10. Bxe6 {[%clk 0:01:46]}  fxe6 {[%clk 0:02:02]} 11. Bg5 {[%clk 0:01:42]}  Bc5 {[%clk 0:01:08]} 12. O-O-O {[%clk 0:01:38]}  Nd7 {[%clk 0:00:48]} 13. Qh5+ {[%clk 0:01:14]}  g6 {[%clk 0:00:45]} 14. Qh3 {[%clk 0:01:13]}  Ne7 {[%clk 0:00:14]} 15. Qxe6 {[%clk 0:01:11]}  Be3+ {[%clk 0:00:14]} 16. Kb1 {[%clk 0:00:59]}  Bxg5 {[%clk 0:00:14]} 17. Rxd7 {[%clk 0:00:46]}  Rd8 {[%clk 0:00:09]} 18. Nd5 {[%clk 0:00:43]}  Qc5 {[%clk 0:00:04]} 19. Nc7+ {[%clk 0:00:41]}  Kf8 {[%clk 0:00:04]} 20. Rxd8+ {[%clk 0:00:42]}  Kg7 {[%clk 0:00:05]} 21. Rxh8 {[%clk 0:00:42]}  Kxh8 {[%clk 0:00:06]} 22. Qd6 {[%clk 0:00:39]}  Qf2 {[%clk 0:00:06]} 23. Ne6 {[%clk 0:00:38]}  Qxg2 {[%clk 0:00:06]} 24. Rd1 {[%clk 0:00:38]}  Bh4 {[%clk 0:00:06]} 25. Qd8+ {[%clk 0:00:37]}  Ng8 {[%clk 0:00:07]} 26. Qxh4 {[%clk 0:00:38]} 1-0


[Site "https://www.chess.com"]

[Event "Titled Tuesday Blitz March 22 Early 2022"]
[White "Tari, Aryan"]
[Black "Lewtak, Damian"]
[WhiteFideId "1510045"]
[BlackFideId "1141724"]
[WhiteElo "2567"]
[BlackElo "2362"]
[Result "1-0"]
[Round "04"]
[TimeControl "180+1"]
[Date "2022.03.22"]
[WhiteClock "0:00:31"]
[BlackClock "0:00:58"]

1. e4 {[%clk 0:03:00]}  a6 {[%clk 0:03:00]} 2. d4 {[%clk 0:03:00]}  g6 {[%clk 0:03:00]} 3. h4 {[%clk 0:02:54]}  h5 {[%clk 0:02:59]} 4. Bg5 {[%clk 0:02:53]}  c5 {[%clk 0:02:55]} 5. dxc5 {[%clk 0:02:48]}  Qa5+ {[%clk 0:02:48]} 6. Nc3 {[%clk 0:02:46]}  Bg7 {[%clk 0:02:43]} 7. Qd2 {[%clk 0:02:32]}  Nf6 {[%clk 0:02:24]} 8. O-O-O {[%clk 0:02:21]}  Qxc5 {[%clk 0:01:54]} 9. Nf3 {[%clk 0:01:40]}  d6 {[%clk 0:01:47]} 10. e5 {[%clk 0:01:35]}  Ng4 {[%clk 0:01:47]} 11. exd6 {[%clk 0:01:31]}  Qxd6 {[%clk 0:01:40]} 12. Qxd6 {[%clk 0:01:21]}  exd6 {[%clk 0:01:40]} 13. Re1+ {[%clk 0:00:49]}  Be6 {[%clk 0:01:39]} 14. Nd5 {[%clk 0:00:50]}  Ra7 {[%clk 0:01:30]} 15. Bc4 {[%clk 0:00:41]}  b5 {[%clk 0:01:24]} 16. Bb3 {[%clk 0:00:41]}  Kd7 {[%clk 0:01:16]} 17. Nf4 {[%clk 0:00:34]}  Ne5 {[%clk 0:00:56]} 18. Bxe6+ {[%clk 0:00:31]}  fxe6 {[%clk 0:00:57]} 19. Nxe5+ {[%clk 0:00:31]}  Bxe5 {[%clk 0:00:58]} 20. Nxg6 {[%clk 0:00:31]}  Rg8 {[%clk 0:00:56]} 21. Nxe5+ {[%clk 0:00:31]}  dxe5 {[%clk 0:00:57]} 22. Rxe5 {[%clk 0:00:30]}  Nc6 {[%clk 0:00:58]} 23. Rd1+ {[%clk 0:00:31]} 1-0


[Site "https://www.chess.com"]

[Event "Titled Tuesday Blitz March 22 Early 2022"]
[White "Thomas, Anysia"]
[Black "Vovk, Orest"]
[WhiteFideId "670472"]
[BlackFideId "14113490"]
[WhiteElo "2002"]
[BlackElo "2203"]
[Result "0-1"]
[Round "04"]
[TimeControl "180+1"]
[Date "2022.03.22"]
[WhiteClock "0:00:14"]
[BlackClock "0:01:15"]

1. d4 {[%clk 0:03:00]}  e5 {[%clk 0:02:59]} 2. dxe5 {[%clk 0:03:00]}  Nc6 {[%clk 0:02:59]} 3. Nf3 {[%clk 0:03:00]}  Qe7 {[%clk 0:03:00]} 4. Qd5 {[%clk 0:02:58]}  h6 {[%clk 0:02:59]} 5. e4 {[%clk 0:02:48]}  g5 {[%clk 0:02:59]} 6. h3 {[%clk 0:02:44]}  Bg7 {[%clk 0:02:49]} 7. Bc4 {[%clk 0:02:41]}  Nxe5 {[%clk 0:02:48]} 8. Nxe5 {[%clk 0:02:40]}  Bxe5 {[%clk 0:02:47]} 9. O-O {[%clk 0:02:36]}  d6 {[%clk 0:02:39]} 10. f4 {[%clk 0:02:17]}  gxf4 {[%clk 0:02:37]} 11. Bxf4 {[%clk 0:02:17]}  Nf6 {[%clk 0:02:37]} 12. Qd3 {[%clk 0:01:54]}  Rg8 {[%clk 0:02:29]} 13. Nc3 {[%clk 0:01:51]}  Be6 {[%clk 0:02:28]} 14. Nd5 {[%clk 0:01:46]}  Bxd5 {[%clk 0:02:21]} 15. Bxd5 {[%clk 0:01:42]}  Nxd5 {[%clk 0:02:19]} 16. Qxd5 {[%clk 0:01:39]}  O-O-O {[%clk 0:02:18]} 17. Bxe5 {[%clk 0:01:32]}  dxe5 {[%clk 0:02:18]} 18. Qxf7 {[%clk 0:01:31]}  Qc5+ {[%clk 0:02:18]} 19. Qf2 {[%clk 0:01:29]}  Qc6 {[%clk 0:02:11]} 20. Qf5+ {[%clk 0:01:11]}  Kb8 {[%clk 0:01:57]} 21. Rf2 {[%clk 0:01:10]}  Qd6 {[%clk 0:01:48]} 22. Raf1 {[%clk 0:01:07]}  a6 {[%clk 0:01:46]} 23. Qf6 {[%clk 0:00:30]}  Qd4 {[%clk 0:01:29]} 24. Kh1 {[%clk 0:00:16]}  Qxe4 {[%clk 0:01:22]} 25. Qxh6 {[%clk 0:00:16]}  Rh8 {[%clk 0:01:19]} 26. Rf8 {[%clk 0:00:14]}  Rxh6 {[%clk 0:01:15]} 0-1


[Site "https://www.chess.com"]

[Event "Titled Tuesday Blitz March 22 Early 2022"]
[White "Vine, Elzbieta"]
[Black "Rostovtsev, Dmitry"]
[WhiteFideId "1119320"]
[BlackFideId "34278320"]
[WhiteElo "1828"]
[BlackElo "2359"]
[Result "0-1"]
[Round "04"]
[TimeControl "180+1"]
[Date "2022.03.22"]
[WhiteClock "0:00:01"]
[BlackClock "0:01:19"]

1. e4 {[%clk 0:02:56]}  c5 {[%clk 0:02:57]} 2. Nf3 {[%clk 0:02:50]}  Nc6 {[%clk 0:02:57]} 3. d4 {[%clk 0:02:49]}  cxd4 {[%clk 0:02:55]} 4. Nxd4 {[%clk 0:02:48]}  Nf6 {[%clk 0:02:56]} 5. Nc3 {[%clk 0:02:47]}  e5 {[%clk 0:02:54]} 6. Ndb5 {[%clk 0:02:46]}  d6 {[%clk 0:02:51]} 7. Bg5 {[%clk 0:02:44]}  a6 {[%clk 0:02:51]} 8. Na3 {[%clk 0:02:43]}  b5 {[%clk 0:02:51]} 9. Nd5 {[%clk 0:02:42]}  Be7 {[%clk 0:02:51]} 10. Nxe7 {[%clk 0:02:18]}  Nxe7 {[%clk 0:02:49]} 11. c4 {[%clk 0:02:17]}  Nxe4 {[%clk 0:02:41]} 12. Bxe7 {[%clk 0:02:00]}  Qa5+ {[%clk 0:02:36]} 13. Ke2 {[%clk 0:01:57]}  Kxe7 {[%clk 0:02:35]} 14. Qd3 {[%clk 0:01:38]}  Nc5 {[%clk 0:02:29]} 15. Qg3 {[%clk 0:01:28]}  bxc4 {[%clk 0:02:07]} 16. Nxc4 {[%clk 0:01:16]}  Qb5 {[%clk 0:02:02]} 17. Ke1 {[%clk 0:00:56]}  Qb4+ {[%clk 0:01:43]} 18. Qc3 {[%clk 0:00:45]}  Qxc3+ {[%clk 0:01:43]} 19. bxc3 {[%clk 0:00:44]}  Be6 {[%clk 0:01:43]} 20. f3 {[%clk 0:00:29]}  Bxc4 {[%clk 0:01:41]} 21. Bxc4 {[%clk 0:00:28]}  Rab8 {[%clk 0:01:42]} 22. Bb3 {[%clk 0:00:23]}  Nxb3 {[%clk 0:01:38]} 23. axb3 {[%clk 0:00:23]}  Rxb3 {[%clk 0:01:38]} 24. Kf2 {[%clk 0:00:21]}  Rb2+ {[%clk 0:01:34]} 25. Kg3 {[%clk 0:00:20]}  Ra8 {[%clk 0:01:29]} 26. Rhd1 {[%clk 0:00:17]}  a5 {[%clk 0:01:24]} 27. Ra4 {[%clk 0:00:16]}  Rb5 {[%clk 0:01:20]} 28. c4 {[%clk 0:00:14]}  Rc5 {[%clk 0:01:20]} 29. Rb1 {[%clk 0:00:13]}  Rac8 {[%clk 0:01:20]} 30. Rb7+ {[%clk 0:00:11]}  R8c7 {[%clk 0:01:20]} 31. Rxc7+ {[%clk 0:00:11]}  Rxc7 {[%clk 0:01:21]} 32. Kf2 {[%clk 0:00:10]}  Rc5 {[%clk 0:01:21]} 33. Ke3 {[%clk 0:00:09]}  Ke6 {[%clk 0:01:21]} 34. Kd3 {[%clk 0:00:08]}  d5 {[%clk 0:01:21]} 35. cxd5+ {[%clk 0:00:08]}  Kxd5 {[%clk 0:01:22]} 36. g3 {[%clk 0:00:05]}  Rb5 {[%clk 0:01:21]} 37. Ra2 {[%clk 0:00:02]}  Rb3+ {[%clk 0:01:21]} 38. Ke2 {[%clk 0:00:01]}  Rb5 {[%clk 0:01:19]} 0-1


[Site "https://www.chess.com"]

[Event "Titled Tuesday Blitz March 22 Early 2022"]
[White "Vishnu, Prasanna. V"]
[Black "Dilanyan, Grigor"]
[WhiteFideId "5030692"]
[BlackFideId "13303570"]
[WhiteElo "2510"]
[BlackElo "2279"]
[Result "1-0"]
[Round "04"]
[TimeControl "180+1"]
[Date "2022.03.22"]
[WhiteClock "0:00:35"]
[BlackClock "0:00:10"]

1. d4 {[%clk 0:03:00]}  Nf6 {[%clk 0:02:59]} 2. c4 {[%clk 0:03:01]}  g6 {[%clk 0:03:00]} 3. g3 {[%clk 0:03:01]}  Bg7 {[%clk 0:03:01]} 4. Bg2 {[%clk 0:03:02]}  O-O {[%clk 0:03:01]} 5. Nf3 {[%clk 0:03:02]}  d6 {[%clk 0:03:02]} 6. O-O {[%clk 0:03:03]}  Nc6 {[%clk 0:03:01]} 7. Nc3 {[%clk 0:03:02]}  a6 {[%clk 0:03:01]} 8. d5 {[%clk 0:02:59]}  Na5 {[%clk 0:03:01]} 9. b3 {[%clk 0:02:59]}  c5 {[%clk 0:03:01]} 10. dxc6 {[%clk 0:02:59]}  Nxc6 {[%clk 0:02:59]} 11. Be3 {[%clk 0:02:59]}  Bd7 {[%clk 0:02:57]} 12. Rc1 {[%clk 0:02:58]}  Qa5 {[%clk 0:02:56]} 13. h3 {[%clk 0:02:58]}  Rfc8 {[%clk 0:02:54]} 14. Qd2 {[%clk 0:02:54]}  b5 {[%clk 0:02:50]} 15. Nd5 {[%clk 0:02:44]}  Nxd5 {[%clk 0:02:45]} 16. Qxa5 {[%clk 0:02:11]}  Nxa5 {[%clk 0:02:37]} 17. cxd5 {[%clk 0:02:11]}  Bb2 {[%clk 0:02:29]} 18. Rb1 {[%clk 0:01:49]}  Bf6 {[%clk 0:02:29]} 19. Nd4 {[%clk 0:01:36]}  Rc3 {[%clk 0:02:29]} 20. Rfc1 {[%clk 0:01:20]}  Rac8 {[%clk 0:02:28]} 21. Rxc3 {[%clk 0:01:20]}  Rxc3 {[%clk 0:02:29]} 22. Kf1 {[%clk 0:01:17]}  e5 {[%clk 0:01:31]} 23. dxe6 {[%clk 0:01:09]}  fxe6 {[%clk 0:01:31]} 24. g4 {[%clk 0:01:04]}  h5 {[%clk 0:01:05]} 25. Rd1 {[%clk 0:00:59]}  d5 {[%clk 0:01:02]} 26. Bf3 {[%clk 0:00:44]}  h4 {[%clk 0:01:01]} 27. g5 {[%clk 0:00:35]}  Be5 {[%clk 0:00:59]} 28. Bg4 {[%clk 0:00:35]}  Kf7 {[%clk 0:00:59]} 29. Nf3 {[%clk 0:00:33]}  Bg7 {[%clk 0:00:55]} 30. Bd4 {[%clk 0:00:33]}  Bxd4 {[%clk 0:00:50]} 31. Rxd4 {[%clk 0:00:34]}  Nc6 {[%clk 0:00:38]} 32. Rf4+ {[%clk 0:00:34]}  Ke7 {[%clk 0:00:37]} 33. Rf6 {[%clk 0:00:35]}  Rc1+ {[%clk 0:00:22]} 34. Kg2 {[%clk 0:00:35]}  Rc2 {[%clk 0:00:23]} 35. Nxh4 {[%clk 0:00:35]}  Rxa2 {[%clk 0:00:18]} 36. Nxg6+ {[%clk 0:00:35]}  Kd6 {[%clk 0:00:18]} 37. Nf8 {[%clk 0:00:36]}  Ne5 {[%clk 0:00:15]} 38. g6 {[%clk 0:00:35]}  Nxg6 {[%clk 0:00:10]} 39. Rxg6 {[%clk 0:00:35]} 1-0


[Site "https://www.chess.com"]

[Event "Titled Tuesday Blitz March 22 Early 2022"]
[White "Yang, Kaiqi"]
[Black "Kanyamarala, Trisha"]
[WhiteFideId "8604398"]
[BlackFideId "45004722"]
[WhiteElo "2373"]
[BlackElo "2047"]
[Result "1-0"]
[Round "04"]
[TimeControl "180+1"]
[Date "2022.03.22"]
[WhiteClock "0:00:10"]
[BlackClock "0:00:01"]

1. e4 {[%clk 0:03:00]}  c5 {[%clk 0:02:59]} 2. Nc3 {[%clk 0:03:00]}  Nc6 {[%clk 0:02:56]} 3. Bb5 {[%clk 0:02:59]}  Nd4 {[%clk 0:02:56]} 4. Nf3 {[%clk 0:03:00]}  g6 {[%clk 0:02:55]} 5. O-O {[%clk 0:02:55]}  Bg7 {[%clk 0:02:54]} 6. Re1 {[%clk 0:02:41]}  Nxb5 {[%clk 0:02:52]} 7. Nxb5 {[%clk 0:02:41]}  d6 {[%clk 0:02:53]} 8. d4 {[%clk 0:02:31]}  cxd4 {[%clk 0:02:52]} 9. Nbxd4 {[%clk 0:02:28]}  Nf6 {[%clk 0:02:52]} 10. Bg5 {[%clk 0:02:24]}  O-O {[%clk 0:02:52]} 11. Qd2 {[%clk 0:02:24]}  a6 {[%clk 0:02:40]} 12. Bh6 {[%clk 0:02:19]}  Qc7 {[%clk 0:02:37]} 13. a4 {[%clk 0:02:08]}  b6 {[%clk 0:02:31]} 14. c3 {[%clk 0:01:56]}  Bb7 {[%clk 0:02:30]} 15. Bxg7 {[%clk 0:01:56]}  Kxg7 {[%clk 0:02:30]} 16. Qg5 {[%clk 0:01:57]}  Nxe4 {[%clk 0:02:24]} 17. Qh4 {[%clk 0:01:08]}  Nf6 {[%clk 0:02:06]} 18. Ng5 {[%clk 0:01:03]}  Qd7 {[%clk 0:02:03]} 19. Re3 {[%clk 0:00:57]}  h6 {[%clk 0:01:45]} 20. Nge6+ {[%clk 0:00:29]}  fxe6 {[%clk 0:01:40]} 21. Nxe6+ {[%clk 0:00:30]}  Kh7 {[%clk 0:01:29]} 22. Ng5+ {[%clk 0:00:29]}  Kg7 {[%clk 0:01:15]} 23. Ne6+ {[%clk 0:00:28]}  Kh7 {[%clk 0:01:07]} 24. Rae1 {[%clk 0:00:24]}  Rfe8 {[%clk 0:00:39]} 25. Ng5+ {[%clk 0:00:19]}  Kg7 {[%clk 0:00:38]} 26. Ne6+ {[%clk 0:00:16]}  Kh7 {[%clk 0:00:38]} 27. Rh3 {[%clk 0:00:13]}  h5 {[%clk 0:00:28]} 28. Qg5 {[%clk 0:00:11]}  Bd5 {[%clk 0:00:17]} 29. Rg3 {[%clk 0:00:07]}  Rg8 {[%clk 0:00:13]} 30. Nf4 {[%clk 0:00:04]}  Bf7 {[%clk 0:00:12]} 31. h3 {[%clk 0:00:03]}  Rae8 {[%clk 0:00:11]} 32. Kh2 {[%clk 0:00:03]}  Qf5 {[%clk 0:00:11]} 33. h4 {[%clk 0:00:02]}  Qxg5 {[%clk 0:00:11]} 34. hxg5 {[%clk 0:00:02]}  Ng4+ {[%clk 0:00:11]} 35. Kg1 {[%clk 0:00:02]}  e5 {[%clk 0:00:11]} 36. Nd3 {[%clk 0:00:02]}  Bc4 {[%clk 0:00:11]} 37. Nc1 {[%clk 0:00:02]}  Rgf8 {[%clk 0:00:11]} 38. f3 {[%clk 0:00:02]}  d5 {[%clk 0:00:09]} 39. fxg4 {[%clk 0:00:03]}  hxg4 {[%clk 0:00:08]} 40. b3 {[%clk 0:00:03]}  b5 {[%clk 0:00:05]} 41. bxc4 {[%clk 0:00:04]}  bxc4 {[%clk 0:00:05]} 42. Rxg4 {[%clk 0:00:04]}  Rf5 {[%clk 0:00:05]} 43. Ne2 {[%clk 0:00:04]}  Kg7 {[%clk 0:00:03]} 44. Ng3 {[%clk 0:00:04]}  Rf7 {[%clk 0:00:02]} 45. Rd1 {[%clk 0:00:04]}  Rd7 {[%clk 0:00:02]} 46. Rh4 {[%clk 0:00:04]}  Red8 {[%clk 0:00:02]} 47. Kf2 {[%clk 0:00:05]}  d4 {[%clk 0:00:02]} 48. cxd4 {[%clk 0:00:05]}  exd4 {[%clk 0:00:03]} 49. Rdh1 {[%clk 0:00:05]}  Kf7 {[%clk 0:00:02]} 50. Ne4 {[%clk 0:00:05]}  Ke6 {[%clk 0:00:02]} 51. Rh6 {[%clk 0:00:05]}  Rf7+ {[%clk 0:00:02]} 52. Ke2 {[%clk 0:00:05]}  Kd5 {[%clk 0:00:02]} 53. Nf6+ {[%clk 0:00:05]}  Kc5 {[%clk 0:00:03]} 54. Rxg6 {[%clk 0:00:05]}  d3+ {[%clk 0:00:03]} 55. Kd2 {[%clk 0:00:06]}  Rb7 {[%clk 0:00:03]} 56. Rc1 {[%clk 0:00:05]}  Rb2+ {[%clk 0:00:03]} 57. Ke3 {[%clk 0:00:05]}  d2 {[%clk 0:00:03]} 58. Ne4+ {[%clk 0:00:05]}  Kb4 {[%clk 0:00:03]} 59. Nxd2 {[%clk 0:00:06]}  Rbxd2 {[%clk 0:00:03]} 60. Rb6+ {[%clk 0:00:06]}  Ka5 {[%clk 0:00:03]} 61. Rc6 {[%clk 0:00:06]}  R8d3+ {[%clk 0:00:03]} 62. Ke4 {[%clk 0:00:06]}  Re2+ {[%clk 0:00:03]} 63. Kf5 {[%clk 0:00:06]}  Rf2+ {[%clk 0:00:02]} 64. Kg6 {[%clk 0:00:06]}  Rxg2 {[%clk 0:00:02]} 65. R1xc4 {[%clk 0:00:06]}  Rdg3 {[%clk 0:00:02]} 66. R4c5+ {[%clk 0:00:07]}  Kxa4 {[%clk 0:00:02]} 67. Rxa6+ {[%clk 0:00:07]}  Kb4 {[%clk 0:00:01]} 68. Rf5 {[%clk 0:00:07]}  Kc4 {[%clk 0:00:02]} 69. Kf6 {[%clk 0:00:07]}  Kd4 {[%clk 0:00:02]} 70. Ra4+ {[%clk 0:00:07]}  Ke3 {[%clk 0:00:01]} 71. Re5+ {[%clk 0:00:07]}  Kd2 {[%clk 0:00:01]} 72. Ra2+ {[%clk 0:00:07]}  Kc3 {[%clk 0:00:01]} 73. Rxg2 {[%clk 0:00:08]}  Rxg2 {[%clk 0:00:01]} 74. g6 {[%clk 0:00:09]}  Kd4 {[%clk 0:00:02]} 75. Rg5 {[%clk 0:00:09]}  Rf2+ {[%clk 0:00:02]} 76. Ke6 {[%clk 0:00:09]}  Re2+ {[%clk 0:00:02]} 77. Kd6 {[%clk 0:00:10]}  Re8 {[%clk 0:00:01]} 78. g7 {[%clk 0:00:10]}  Rg8 {[%clk 0:00:01]} 79. Ke6 {[%clk 0:00:10]} 1-0


[Site "https://www.chess.com"]

[Event "Titled Tuesday Blitz March 22 Early 2022"]
[White "Zemerov, Vladimir"]
[Black "Ismayil, Malak"]
[WhiteFideId "4111583"]
[BlackFideId "13412604"]
[WhiteElo "2277"]
[BlackElo "1879"]
[Result "1/2-1/2"]
[Round "04"]
[TimeControl "180+1"]
[Date "2022.03.22"]
[WhiteClock "0:00:42"]
[BlackClock "0:00:10"]

1. d4 {[%clk 0:03:00]}  Nf6 {[%clk 0:02:58]} 2. c4 {[%clk 0:03:01]}  e6 {[%clk 0:02:56]} 3. Nf3 {[%clk 0:02:59]}  Bb4+ {[%clk 0:02:57]} 4. Nbd2 {[%clk 0:02:58]}  O-O {[%clk 0:02:56]} 5. a3 {[%clk 0:02:58]}  Bxd2+ {[%clk 0:02:55]} 6. Bxd2 {[%clk 0:02:58]}  Ne4 {[%clk 0:02:55]} 7. g3 {[%clk 0:02:54]}  f5 {[%clk 0:02:53]} 8. Bg2 {[%clk 0:02:54]}  d6 {[%clk 0:02:53]} 9. O-O {[%clk 0:02:54]}  Nc6 {[%clk 0:02:49]} 10. d5 {[%clk 0:02:52]}  Ne7 {[%clk 0:02:44]} 11. dxe6 {[%clk 0:02:38]}  Bxe6 {[%clk 0:02:42]} 12. Qc2 {[%clk 0:02:38]}  Bd7 {[%clk 0:02:32]} 13. Bf4 {[%clk 0:02:33]}  Nc6 {[%clk 0:02:30]} 14. b4 {[%clk 0:02:30]}  Qe7 {[%clk 0:02:27]} 15. Rad1 {[%clk 0:02:27]}  Rad8 {[%clk 0:02:25]} 16. Nd4 {[%clk 0:02:25]}  Nxd4 {[%clk 0:02:14]} 17. Rxd4 {[%clk 0:02:24]}  Rfe8 {[%clk 0:02:12]} 18. Rfd1 {[%clk 0:02:12]}  Nf6 {[%clk 0:02:07]} 19. Bf3 {[%clk 0:02:08]}  h6 {[%clk 0:01:40]} 20. Bxb7 {[%clk 0:02:07]}  Qxe2 {[%clk 0:01:34]} 21. Qxe2 {[%clk 0:02:06]}  Rxe2 {[%clk 0:01:35]} 22. c5 {[%clk 0:02:03]}  dxc5 {[%clk 0:01:13]} 23. bxc5 {[%clk 0:02:01]}  Rb8 {[%clk 0:01:12]} 24. c6 {[%clk 0:01:58]}  Be6 {[%clk 0:01:00]} 25. Bxc7 {[%clk 0:01:57]}  Re8 {[%clk 0:01:00]} 26. Rd8 {[%clk 0:01:54]}  Kf7 {[%clk 0:00:57]} 27. Rxe8 {[%clk 0:01:51]}  Nxe8 {[%clk 0:00:58]} 28. Bf4 {[%clk 0:01:48]}  g5 {[%clk 0:00:49]} 29. Be3 {[%clk 0:01:47]}  Rc2 {[%clk 0:00:37]} 30. Bxa7 {[%clk 0:01:45]}  Nf6 {[%clk 0:00:35]} 31. Bd4 {[%clk 0:01:34]}  Ne4 {[%clk 0:00:28]} 32. a4 {[%clk 0:01:33]}  Nd2 {[%clk 0:00:23]} 33. c7 {[%clk 0:01:28]}  Rxc7 {[%clk 0:00:20]} 34. Rxd2 {[%clk 0:01:18]}  Rxb7 {[%clk 0:00:20]} 35. a5 {[%clk 0:01:11]}  Bd5 {[%clk 0:00:16]} 36. Bb6 {[%clk 0:01:09]}  Ke6 {[%clk 0:00:15]} 37. f4 {[%clk 0:01:09]}  gxf4 {[%clk 0:00:14]} 38. gxf4 {[%clk 0:01:08]}  Rg7+ {[%clk 0:00:14]} 39. Kf2 {[%clk 0:01:08]}  Rg2+ {[%clk 0:00:14]} 40. Ke3 {[%clk 0:01:08]}  Rg1 {[%clk 0:00:12]} 41. Kd4 {[%clk 0:01:06]}  Rc1 {[%clk 0:00:07]} 42. Re2+ {[%clk 0:01:05]}  Be4 {[%clk 0:00:06]} 43. Rxe4+ {[%clk 0:01:03]}  fxe4 {[%clk 0:00:06]} 44. Kxe4 {[%clk 0:01:03]}  Rc4+ {[%clk 0:00:06]} 45. Ke3 {[%clk 0:00:56]}  Kf5 {[%clk 0:00:06]} 46. a6 {[%clk 0:00:55]}  Rxf4 {[%clk 0:00:05]} 47. a7 {[%clk 0:00:55]}  Ra4 {[%clk 0:00:05]} 48. Kd3 {[%clk 0:00:54]}  Kg4 {[%clk 0:00:05]} 49. Kc3 {[%clk 0:00:48]}  Kh3 {[%clk 0:00:04]} 50. Kb3 {[%clk 0:00:45]}  Ra6 {[%clk 0:00:03]} 51. Kc4 {[%clk 0:00:44]}  Kxh2 {[%clk 0:00:02]} 52. Kb5 {[%clk 0:00:43]}  Rxa7 {[%clk 0:00:02]} 53. Bxa7 {[%clk 0:00:43]}  h5 {[%clk 0:00:02]} 54. Bb8+ {[%clk 0:00:42]}  Kh3 {[%clk 0:00:02]} 55. Kc4 {[%clk 0:00:42]}  Kg4 {[%clk 0:00:03]} 56. Kd3 {[%clk 0:00:42]}  h4 {[%clk 0:00:04]} 57. Ke2 {[%clk 0:00:42]}  h3 {[%clk 0:00:05]} 58. Bh2 {[%clk 0:00:41]}  Kh4 {[%clk 0:00:05]} 59. Kf3 {[%clk 0:00:41]}  Kh5 {[%clk 0:00:05]} 60. Kf4 {[%clk 0:00:41]}  Kh4 {[%clk 0:00:05]} 61. Kf5 {[%clk 0:00:41]}  Kh5 {[%clk 0:00:06]} 62. Ke4 {[%clk 0:00:41]}  Kh4 {[%clk 0:00:07]} 63. Ke3 {[%clk 0:00:41]}  Kh5 {[%clk 0:00:08]} 64. Kf3 {[%clk 0:00:42]}  Kh4 {[%clk 0:00:09]} 65. Kf4 {[%clk 0:00:42]}  Kh5 {[%clk 0:00:10]} 66. Kg3 {[%clk 0:00:42]}  Kg5 {[%clk 0:00:10]} 67. Kxh3 {[%clk 0:00:42]} 1/2-1/2


[Site "https://www.chess.com"]